[Event "Titled Tuesday Blitz November 29 Early 2022"]
[White "Roque Sola, Jose Luis"]
[Black "Rose, Felix"]
[WhiteFideId "5120390"]
[BlackFideId "5105722"]
[WhiteElo "2117"]
[BlackElo "2039"]
[Result "0-1"]
[Round "07"]
[TimeControl "180+1"]
[Date "2022.11.30"]
[WhiteClock "0:00:01"]
[BlackClock "0:00:10"]

1. c4 {[%clk 0:03:00]}  e6 {[%clk 0:02:55]} 2. Nf3 {[%clk 0:02:59]}  Nf6 {[%clk 0:02:55]} 3. g3 {[%clk 0:02:57]}  d5 {[%clk 0:02:55]} 4. b3 {[%clk 0:02:57]}  Be7 {[%clk 0:02:54]} 5. Bg2 {[%clk 0:02:54]}  b6 {[%clk 0:02:53]} 6. Bb2 {[%clk 0:02:52]}  Bb7 {[%clk 0:02:54]} 7. O-O {[%clk 0:02:52]}  dxc4 {[%clk 0:02:53]} 8. bxc4 {[%clk 0:02:52]}  c5 {[%clk 0:02:53]} 9. d3 {[%clk 0:02:51]}  O-O {[%clk 0:02:53]} 10. Nbd2 {[%clk 0:02:39]}  Nbd7 {[%clk 0:02:49]} 11. Qc2 {[%clk 0:02:29]}  Re8 {[%clk 0:02:49]} 12. Rad1 {[%clk 0:02:28]}  Rc8 {[%clk 0:02:49]} 13. Qb1 {[%clk 0:02:27]}  Bf8 {[%clk 0:02:48]} 14. Bc3 {[%clk 0:02:18]}  e5 {[%clk 0:02:44]} 15. Qb2 {[%clk 0:02:09]}  Qc7 {[%clk 0:02:34]} 16. Rb1 {[%clk 0:01:37]}  e4 {[%clk 0:02:23]} 17. Nxe4 {[%clk 0:01:33]}  Nxe4 {[%clk 0:02:19]} 18. dxe4 {[%clk 0:01:33]}  Bxe4 {[%clk 0:02:17]} 19. Rbd1 {[%clk 0:01:34]}  Qc6 {[%clk 0:01:52]} 20. Rd2 {[%clk 0:01:20]}  Nb8 {[%clk 0:01:22]} 21. Rfd1 {[%clk 0:01:17]}  h6 {[%clk 0:01:19]} 22. Ne1 {[%clk 0:00:27]}  Bxg2 {[%clk 0:01:18]} 23. Nxg2 {[%clk 0:00:28]}  Re4 {[%clk 0:01:12]} 24. Ne3 {[%clk 0:00:26]}  Qe6 {[%clk 0:00:58]} 25. Rd8 {[%clk 0:00:20]}  Nc6 {[%clk 0:00:56]} 26. Rxc8 {[%clk 0:00:20]}  Qxc8 {[%clk 0:00:56]} 27. Qc2 {[%clk 0:00:17]}  Qe6 {[%clk 0:00:53]} 28. Qd3 {[%clk 0:00:14]}  g6 {[%clk 0:00:18]} 29. Qd5 {[%clk 0:00:11]}  Bg7 {[%clk 0:00:14]} 30. Qxe6 {[%clk 0:00:10]}  Rxe6 {[%clk 0:00:15]} 31. Bxg7 {[%clk 0:00:11]}  Kxg7 {[%clk 0:00:15]} 32. Kf1 {[%clk 0:00:10]}  Re4 {[%clk 0:00:15]} 33. Rd3 {[%clk 0:00:09]}  Na5 {[%clk 0:00:16]} 34. Rc3 {[%clk 0:00:08]}  f5 {[%clk 0:00:15]} 35. f3 {[%clk 0:00:08]}  Rd4 {[%clk 0:00:15]} 36. Kf2 {[%clk 0:00:06]}  Kf6 {[%clk 0:00:15]} 37. f4 {[%clk 0:00:04]}  g5 {[%clk 0:00:14]} 38. Kf3 {[%clk 0:00:04]}  g4+ {[%clk 0:00:14]} 39. Kf2 {[%clk 0:00:04]}  h5 {[%clk 0:00:14]} 40. Nd5+ {[%clk 0:00:04]}  Kf7 {[%clk 0:00:11]} 41. Re3 {[%clk 0:00:02]}  Nxc4 {[%clk 0:00:09]} 42. Re7+ {[%clk 0:00:01]}  Kf8 {[%clk 0:00:10]} 0-1


[Site "https://www.chess.com"]

[Event "Titled Tuesday Blitz November 29 Early 2022"]
[White "Sadubayev, Airat"]
[Black "Kezin, Roman"]
[WhiteFideId "13713264"]
[BlackFideId "24124621"]
[WhiteElo "2160"]
[BlackElo "2501"]
[Result "1-0"]
[Round "07"]
[TimeControl "180+1"]
[Date "2022.11.30"]
[WhiteClock "0:00:07"]
[BlackClock "0:00:02"]

1. d4 {[%clk 0:02:59]}  c6 {[%clk 0:03:00]} 2. c4 {[%clk 0:02:59]}  d6 {[%clk 0:03:01]} 3. Nc3 {[%clk 0:02:58]}  Nd7 {[%clk 0:03:02]} 4. e4 {[%clk 0:02:58]}  Qc7 {[%clk 0:03:03]} 5. Be3 {[%clk 0:02:57]}  a5 {[%clk 0:03:04]} 6. Bd3 {[%clk 0:02:52]}  e5 {[%clk 0:03:05]} 7. Nge2 {[%clk 0:02:51]}  Ngf6 {[%clk 0:03:05]} 8. f3 {[%clk 0:02:51]}  g6 {[%clk 0:03:04]} 9. O-O {[%clk 0:02:48]}  Bg7 {[%clk 0:03:04]} 10. d5 {[%clk 0:02:48]}  O-O {[%clk 0:03:04]} 11. Qd2 {[%clk 0:02:47]}  Nc5 {[%clk 0:03:03]} 12. Bc2 {[%clk 0:02:45]}  Nh5 {[%clk 0:03:02]} 13. g4 {[%clk 0:02:43]}  Nf6 {[%clk 0:02:59]} 14. Rac1 {[%clk 0:02:36]}  Bd7 {[%clk 0:02:42]} 15. Rcd1 {[%clk 0:02:25]}  Rfd8 {[%clk 0:02:39]} 16. b3 {[%clk 0:02:17]}  Be8 {[%clk 0:02:38]} 17. Ng3 {[%clk 0:02:11]}  cxd5 {[%clk 0:02:36]} 18. cxd5 {[%clk 0:02:04]}  b5 {[%clk 0:02:36]} 19. Rc1 {[%clk 0:02:03]}  b4 {[%clk 0:02:33]} 20. Nce2 {[%clk 0:02:00]}  Bb5 {[%clk 0:02:34]} 21. Bb1 {[%clk 0:01:54]}  Nfd7 {[%clk 0:02:34]} 22. Rfd1 {[%clk 0:01:32]}  Qb7 {[%clk 0:02:33]} 23. Nf1 {[%clk 0:01:29]}  Rdc8 {[%clk 0:02:33]} 24. Bf2 {[%clk 0:01:25]}  Bf6 {[%clk 0:02:33]} 25. h4 {[%clk 0:01:24]}  Bd8 {[%clk 0:02:33]} 26. Ne3 {[%clk 0:01:22]}  Bb6 {[%clk 0:02:32]} 27. Kg2 {[%clk 0:01:18]}  a4 {[%clk 0:02:22]} 28. Qb2 {[%clk 0:01:11]}  axb3 {[%clk 0:02:20]} 29. axb3 {[%clk 0:01:11]}  Ra3 {[%clk 0:02:20]} 30. Nc4 {[%clk 0:00:56]}  Rxb3 {[%clk 0:02:18]} 31. Qd2 {[%clk 0:00:49]}  Nxe4 {[%clk 0:02:07]} 32. Bxe4 {[%clk 0:00:40]}  Bxc4 {[%clk 0:02:05]} 33. Ng3 {[%clk 0:00:33]}  Bxf2 {[%clk 0:01:58]} 34. Qxf2 {[%clk 0:00:32]}  Ra3 {[%clk 0:01:59]} 35. Rd2 {[%clk 0:00:30]}  b3 {[%clk 0:01:57]} 36. h5 {[%clk 0:00:29]}  Ra2 {[%clk 0:01:55]} 37. Rcd1 {[%clk 0:00:26]}  Qb6 {[%clk 0:01:47]} 38. Qe1 {[%clk 0:00:24]}  Rxd2+ {[%clk 0:01:36]} 39. Rxd2 {[%clk 0:00:22]}  Ra8 {[%clk 0:01:36]} 40. Bb1 {[%clk 0:00:22]}  Ra1 {[%clk 0:01:34]} 41. hxg6 {[%clk 0:00:21]}  hxg6 {[%clk 0:01:34]} 42. Rd1 {[%clk 0:00:21]}  b2 {[%clk 0:01:31]} 43. Ne4 {[%clk 0:00:20]}  Ba2 {[%clk 0:01:25]} 44. Bxa2 {[%clk 0:00:19]}  Rxa2 {[%clk 0:01:24]} 45. Rb1 {[%clk 0:00:19]}  Qd4 {[%clk 0:01:17]} 46. Qh4 {[%clk 0:00:19]}  Qd3 {[%clk 0:01:06]} 47. Qd8+ {[%clk 0:00:12]}  Kg7 {[%clk 0:01:05]} 48. Nxd6 {[%clk 0:00:11]}  Ra8 {[%clk 0:00:42]} 49. Qe7 {[%clk 0:00:10]}  Qc2+ {[%clk 0:00:32]} 50. Kg3 {[%clk 0:00:10]}  Rf8 {[%clk 0:00:32]} 51. Nf5+ {[%clk 0:00:10]}  Kg8 {[%clk 0:00:28]} 52. Nh6+ {[%clk 0:00:10]}  Kh7 {[%clk 0:00:20]} 53. Nxf7 {[%clk 0:00:08]}  Qc5 {[%clk 0:00:02]} 54. Ng5+ {[%clk 0:00:07]}  Kh6 {[%clk 0:00:02]} 55. Rh1# {[%clk 0:00:07]} 1-0


[Site "https://www.chess.com"]

[Event "Titled Tuesday Blitz November 29 Early 2022"]
[White "Salman, Pavel"]
[Black "Zivkovic, Nemanja"]
[WhiteFideId "24153753"]
[BlackFideId "942154"]
[WhiteElo "2187"]
[BlackElo "2372"]
[Result "1-0"]
[Round "07"]
[TimeControl "180+1"]
[Date "2022.11.30"]
[WhiteClock "0:00:04"]
[BlackClock "0:00:20"]

1. Nf3 {[%clk 0:02:59]}  Nf6 {[%clk 0:02:59]} 2. g3 {[%clk 0:03:00]}  e6 {[%clk 0:02:58]} 3. Bg2 {[%clk 0:03:00]}  d5 {[%clk 0:02:55]} 4. O-O {[%clk 0:02:57]}  Be7 {[%clk 0:02:56]} 5. d3 {[%clk 0:02:58]}  c5 {[%clk 0:02:55]} 6. Nbd2 {[%clk 0:02:59]}  O-O {[%clk 0:02:54]} 7. e4 {[%clk 0:02:59]}  Nc6 {[%clk 0:02:53]} 8. Re1 {[%clk 0:02:56]}  Qc7 {[%clk 0:02:52]} 9. Qe2 {[%clk 0:02:55]}  Rd8 {[%clk 0:02:50]} 10. e5 {[%clk 0:02:55]}  Nd7 {[%clk 0:02:50]} 11. Nf1 {[%clk 0:02:56]}  b5 {[%clk 0:02:49]} 12. Bf4 {[%clk 0:02:56]}  h6 {[%clk 0:02:38]} 13. h4 {[%clk 0:02:54]}  Nf8 {[%clk 0:02:38]} 14. h5 {[%clk 0:02:50]}  Nh7 {[%clk 0:02:34]} 15. Qd2 {[%clk 0:02:40]}  a5 {[%clk 0:02:29]} 16. Ne3 {[%clk 0:02:22]}  Bf8 {[%clk 0:02:25]} 17. g4 {[%clk 0:02:13]}  Bb7 {[%clk 0:02:21]} 18. Nf1 {[%clk 0:02:03]}  b4 {[%clk 0:02:13]} 19. Kh1 {[%clk 0:01:52]}  a4 {[%clk 0:02:10]} 20. a3 {[%clk 0:01:51]}  Rdc8 {[%clk 0:01:58]} 21. g5 {[%clk 0:01:41]}  hxg5 {[%clk 0:01:57]} 22. Bxg5 {[%clk 0:01:41]}  Nxg5 {[%clk 0:01:58]} 23. Qxg5 {[%clk 0:01:41]}  bxa3 {[%clk 0:01:50]} 24. bxa3 {[%clk 0:01:40]}  Nd4 {[%clk 0:01:47]} 25. Nxd4 {[%clk 0:01:34]}  cxd4 {[%clk 0:01:48]} 26. h6 {[%clk 0:01:14]}  g6 {[%clk 0:01:46]} 27. Ra2 {[%clk 0:00:41]}  Qe7 {[%clk 0:01:45]} 28. Qg4 {[%clk 0:00:39]}  Bxh6 {[%clk 0:01:43]} 29. Qxd4 {[%clk 0:00:35]}  Bc6 {[%clk 0:01:33]} 30. Ng3 {[%clk 0:00:30]}  Be8 {[%clk 0:01:31]} 31. c4 {[%clk 0:00:27]}  dxc4 {[%clk 0:01:28]} 32. Bxa8 {[%clk 0:00:21]}  Rxa8 {[%clk 0:01:29]} 33. dxc4 {[%clk 0:00:22]}  Rc8 {[%clk 0:01:27]} 34. Kg1 {[%clk 0:00:19]}  Bf8 {[%clk 0:01:25]} 35. Ne4 {[%clk 0:00:18]}  Bh6 {[%clk 0:01:05]} 36. Nf6+ {[%clk 0:00:18]}  Kg7 {[%clk 0:01:05]} 37. Re4 {[%clk 0:00:16]}  Bc6 {[%clk 0:01:04]} 38. Rh4 {[%clk 0:00:15]}  Rh8 {[%clk 0:01:02]} 39. f3 {[%clk 0:00:08]}  Bxf3 {[%clk 0:00:55]} 40. Rah2 {[%clk 0:00:08]}  Qxa3 {[%clk 0:00:50]} 41. Rxh6 {[%clk 0:00:08]}  Rxh6 {[%clk 0:00:50]} 42. Ne8+ {[%clk 0:00:08]}  Kf8 {[%clk 0:00:45]} 43. Rxh6 {[%clk 0:00:05]}  Qc1+ {[%clk 0:00:44]} 44. Kf2 {[%clk 0:00:05]}  Qxh6 {[%clk 0:00:44]} 45. Nf6 {[%clk 0:00:03]}  Qh3 {[%clk 0:00:19]} 46. Qd8+ {[%clk 0:00:03]}  Kg7 {[%clk 0:00:19]} 47. Qg8+ {[%clk 0:00:04]}  Kh6 {[%clk 0:00:20]} 48. Qh8+ {[%clk 0:00:04]} 1-0


[Site "https://www.chess.com"]

[Event "Titled Tuesday Blitz November 29 Early 2022"]
[White "Samaganova, Aleksandra"]
[Black "Ronka, Erik"]
[WhiteFideId "13800221"]
[BlackFideId "505080"]
[WhiteElo "1864"]
[BlackElo "2264"]
[Result "0-1"]
[Round "07"]
[TimeControl "180+1"]
[Date "2022.11.30"]
[WhiteClock "0:00:02"]
[BlackClock "0:00:03"]

1. c4 {[%clk 0:03:00]}  Nf6 {[%clk 0:02:58]} 2. Nc3 {[%clk 0:02:57]}  e6 {[%clk 0:02:49]} 3. e4 {[%clk 0:02:56]}  c5 {[%clk 0:02:49]} 4. Nf3 {[%clk 0:02:55]}  d6 {[%clk 0:02:48]} 5. d4 {[%clk 0:02:55]}  cxd4 {[%clk 0:02:49]} 6. Nxd4 {[%clk 0:02:55]}  g6 {[%clk 0:02:47]} 7. Be3 {[%clk 0:02:54]}  Bg7 {[%clk 0:02:48]} 8. Be2 {[%clk 0:02:49]}  O-O {[%clk 0:02:47]} 9. O-O {[%clk 0:02:47]}  a6 {[%clk 0:02:38]} 10. Rc1 {[%clk 0:02:42]}  b6 {[%clk 0:02:37]} 11. f3 {[%clk 0:02:41]}  Bb7 {[%clk 0:02:34]} 12. Qd2 {[%clk 0:02:39]}  Nbd7 {[%clk 0:02:33]} 13. Rfd1 {[%clk 0:02:35]}  Qc7 {[%clk 0:02:32]} 14. Bh6 {[%clk 0:02:18]}  Ne5 {[%clk 0:02:24]} 15. b3 {[%clk 0:02:15]}  Rfe8 {[%clk 0:02:19]} 16. Bxg7 {[%clk 0:02:15]}  Kxg7 {[%clk 0:02:19]} 17. Qe3 {[%clk 0:02:01]}  Rad8 {[%clk 0:02:16]} 18. h3 {[%clk 0:01:54]}  Qb8 {[%clk 0:02:08]} 19. Na4 {[%clk 0:01:46]}  Ba8 {[%clk 0:02:05]} 20. Nc2 {[%clk 0:01:31]}  b5 {[%clk 0:01:59]} 21. cxb5 {[%clk 0:01:27]}  axb5 {[%clk 0:02:00]} 22. Nc3 {[%clk 0:01:23]}  b4 {[%clk 0:01:48]} 23. Na4 {[%clk 0:01:14]}  d5 {[%clk 0:01:41]} 24. exd5 {[%clk 0:01:06]}  Nxd5 {[%clk 0:01:39]} 25. Qf2 {[%clk 0:01:02]}  Kg8 {[%clk 0:01:36]} 26. Nd4 {[%clk 0:00:47]}  Rc8 {[%clk 0:01:31]} 27. Nb5 {[%clk 0:00:39]}  Rxc1 {[%clk 0:00:59]} 28. Rxc1 {[%clk 0:00:39]}  Rc8 {[%clk 0:01:00]} 29. Qe1 {[%clk 0:00:12]}  Nf4 {[%clk 0:00:56]} 30. Bf1 {[%clk 0:00:09]}  Bc6 {[%clk 0:00:55]} 31. Nd4 {[%clk 0:00:06]}  Bxa4 {[%clk 0:00:36]} 32. Rxc8+ {[%clk 0:00:06]}  Qxc8 {[%clk 0:00:33]} 33. Qxe5 {[%clk 0:00:07]}  Nd5 {[%clk 0:00:03]} 34. bxa4 {[%clk 0:00:07]}  Qa8 {[%clk 0:00:03]} 35. Bb5 {[%clk 0:00:05]}  Qa7 {[%clk 0:00:03]} 36. Kh2 {[%clk 0:00:03]}  Qc5 {[%clk 0:00:04]} 37. Qb8+ {[%clk 0:00:02]}  Kg7 {[%clk 0:00:04]} 38. Qe5+ {[%clk 0:00:03]}  Kg8 {[%clk 0:00:03]} 39. Nc6 {[%clk 0:00:02]}  Qc2 {[%clk 0:00:03]} 0-1


[Site "https://www.chess.com"]

[Event "Titled Tuesday Blitz November 29 Early 2022"]
[White "Sethuraman, S.P."]
[Black "Sokolovsky, Yahli"]
[WhiteFideId "5021596"]
[BlackFideId "2820242"]
[WhiteElo "2545"]
[BlackElo "2316"]
[Result "1-0"]
[Round "07"]
[TimeControl "180+1"]
[Date "2022.11.30"]
[WhiteClock "0:01:22"]
[BlackClock "0:00:02"]

1. e4 {[%clk 0:03:00]}  g6 {[%clk 0:02:59]} 2. d4 {[%clk 0:03:00]}  Bg7 {[%clk 0:03:00]} 3. Nc3 {[%clk 0:03:01]}  d6 {[%clk 0:03:01]} 4. Be3 {[%clk 0:03:01]}  a6 {[%clk 0:03:01]} 5. h4 {[%clk 0:03:02]}  h5 {[%clk 0:02:59]} 6. f3 {[%clk 0:03:01]}  b5 {[%clk 0:02:56]} 7. Qd2 {[%clk 0:03:01]}  Bb7 {[%clk 0:02:54]} 8. Nh3 {[%clk 0:02:59]}  Nd7 {[%clk 0:02:53]} 9. Ng5 {[%clk 0:02:59]}  Rc8 {[%clk 0:02:49]} 10. a4 {[%clk 0:02:59]}  b4 {[%clk 0:02:48]} 11. Bc4 {[%clk 0:02:56]}  e6 {[%clk 0:02:25]} 12. Ne2 {[%clk 0:02:55]}  a5 {[%clk 0:01:14]} 13. Nf4 {[%clk 0:02:52]}  Nb6 {[%clk 0:01:14]} 14. Bb3 {[%clk 0:02:45]}  d5 {[%clk 0:01:14]} 15. Qd3 {[%clk 0:02:32]}  Qf6 {[%clk 0:00:23]} 16. Qb5+ {[%clk 0:02:26]}  Kf8 {[%clk 0:00:22]} 17. Qxa5 {[%clk 0:02:26]}  Qe7 {[%clk 0:00:22]} 18. Ngxe6+ {[%clk 0:02:24]}  Qxe6 {[%clk 0:00:15]} 19. Nxe6+ {[%clk 0:02:23]}  fxe6 {[%clk 0:00:16]} 20. Qxb4+ {[%clk 0:02:24]}  Kf7 {[%clk 0:00:16]} 21. a5 {[%clk 0:02:24]}  Bf8 {[%clk 0:00:16]} 22. Qb5 {[%clk 0:02:22]}  Ra8 {[%clk 0:00:15]} 23. O-O {[%clk 0:02:14]}  Ba6 {[%clk 0:00:15]} 24. Qc6 {[%clk 0:02:14]}  Bxf1 {[%clk 0:00:10]} 25. Qxc7+ {[%clk 0:02:14]}  Be7 {[%clk 0:00:04]} 26. Qxb6 {[%clk 0:02:12]}  Bc4 {[%clk 0:00:04]} 27. Bxc4 {[%clk 0:02:11]}  dxc4 {[%clk 0:00:05]} 28. d5 {[%clk 0:02:11]}  exd5 {[%clk 0:00:02]} 29. exd5 {[%clk 0:02:10]}  Nf6 {[%clk 0:00:02]} 30. Qe6+ {[%clk 0:02:10]}  Kf8 {[%clk 0:00:03]} 31. d6 {[%clk 0:02:11]}  Bd8 {[%clk 0:00:03]} 32. a6 {[%clk 0:01:29]}  Kg7 {[%clk 0:00:04]} 33. Bd4 {[%clk 0:01:28]}  Rf8 {[%clk 0:00:02]} 34. a7 {[%clk 0:01:27]}  Rf7 {[%clk 0:00:03]} 35. Qd5 {[%clk 0:01:26]}  Raxa7 {[%clk 0:00:02]} 36. Rxa7 {[%clk 0:01:25]}  Rxa7 {[%clk 0:00:03]} 37. Qxc4 {[%clk 0:01:25]}  Rd7 {[%clk 0:00:03]} 38. Qe6 {[%clk 0:01:25]}  Rb7 {[%clk 0:00:02]} 39. b3 {[%clk 0:01:22]}  Rb4 {[%clk 0:00:02]} 40. Qd7+ {[%clk 0:01:22]} 1-0


[Site "https://www.chess.com"]

[Event "Titled Tuesday Blitz November 29 Early 2022"]
[White "Shuvalov, Evgenij"]
[Black "Fernandez Siles, Luis"]
[WhiteFideId "4187237"]
[BlackFideId "2209420"]
[WhiteElo "2049"]
[BlackElo "2186"]
[Result "1-0"]
[Round "07"]
[TimeControl "180+1"]
[Date "2022.11.30"]
[WhiteClock "0:00:16"]
[BlackClock "0:00:03"]

1. d4 {[%clk 0:03:00]}  Nf6 {[%clk 0:02:59]} 2. c4 {[%clk 0:03:00]}  g6 {[%clk 0:02:59]} 3. Nc3 {[%clk 0:03:00]}  Bg7 {[%clk 0:02:59]} 4. e4 {[%clk 0:03:00]}  d6 {[%clk 0:03:00]} 5. Nf3 {[%clk 0:03:01]}  O-O {[%clk 0:02:59]} 6. Be2 {[%clk 0:03:01]}  c5 {[%clk 0:03:00]} 7. O-O {[%clk 0:02:59]}  Nc6 {[%clk 0:03:00]} 8. d5 {[%clk 0:02:59]}  Na5 {[%clk 0:03:00]} 9. Nd2 {[%clk 0:02:56]}  b6 {[%clk 0:02:56]} 10. Qc2 {[%clk 0:02:55]}  e5 {[%clk 0:02:55]} 11. a3 {[%clk 0:02:52]}  Nd7 {[%clk 0:02:45]} 12. b4 {[%clk 0:02:51]}  Nb7 {[%clk 0:02:46]} 13. Bd3 {[%clk 0:02:46]}  Qh4 {[%clk 0:02:18]} 14. Nf3 {[%clk 0:02:43]}  Qh5 {[%clk 0:02:18]} 15. Be2 {[%clk 0:02:37]}  Nf6 {[%clk 0:02:08]} 16. Ng5 {[%clk 0:02:30]}  Bg4 {[%clk 0:01:44]} 17. Bxg4 {[%clk 0:02:08]}  Qxg4 {[%clk 0:01:39]} 18. h3 {[%clk 0:02:00]}  Qd7 {[%clk 0:01:35]} 19. Nf3 {[%clk 0:01:51]}  Nh5 {[%clk 0:01:32]} 20. Rb1 {[%clk 0:01:46]}  h6 {[%clk 0:01:25]} 21. Re1 {[%clk 0:01:45]}  Nf4 {[%clk 0:01:23]} 22. Bxf4 {[%clk 0:01:44]}  exf4 {[%clk 0:01:24]} 23. e5 {[%clk 0:01:45]}  dxe5 {[%clk 0:01:22]} 24. Nxe5 {[%clk 0:01:44]}  Bxe5 {[%clk 0:01:17]} 25. Rxe5 {[%clk 0:01:45]}  f3 {[%clk 0:01:07]} 26. Qd2 {[%clk 0:01:25]}  Kg7 {[%clk 0:00:50]} 27. Rbe1 {[%clk 0:01:17]}  Rae8 {[%clk 0:00:38]} 28. Qe3 {[%clk 0:01:06]}  Nd6 {[%clk 0:00:17]} 29. Qxf3 {[%clk 0:00:56]}  Rxe5 {[%clk 0:00:15]} 30. Rxe5 {[%clk 0:00:57]}  cxb4 {[%clk 0:00:15]} 31. axb4 {[%clk 0:00:54]}  Nxc4 {[%clk 0:00:15]} 32. Re1 {[%clk 0:00:47]}  Nd6 {[%clk 0:00:15]} 33. Ne4 {[%clk 0:00:44]}  Nxe4 {[%clk 0:00:15]} 34. Qxe4 {[%clk 0:00:44]}  Qd6 {[%clk 0:00:14]} 35. b5 {[%clk 0:00:39]}  Rd8 {[%clk 0:00:14]} 36. Rd1 {[%clk 0:00:35]}  Rd7 {[%clk 0:00:13]} 37. g3 {[%clk 0:00:34]}  Re7 {[%clk 0:00:12]} 38. Qd4+ {[%clk 0:00:34]}  Qf6 {[%clk 0:00:12]} 39. d6 {[%clk 0:00:32]}  Rd7 {[%clk 0:00:12]} 40. Qd5 {[%clk 0:00:30]}  Qf5 {[%clk 0:00:10]} 41. Qxf5 {[%clk 0:00:24]}  gxf5 {[%clk 0:00:11]} 42. Kg2 {[%clk 0:00:16]}  Kf6 {[%clk 0:00:12]} 43. Kf3 {[%clk 0:00:16]}  Ke6 {[%clk 0:00:12]} 44. Re1+ {[%clk 0:00:16]}  Kf6 {[%clk 0:00:12]} 45. Rd1 {[%clk 0:00:16]}  Ke6 {[%clk 0:00:12]} 46. Re1+ {[%clk 0:00:17]}  Kxd6 {[%clk 0:00:12]} 47. Rd1+ {[%clk 0:00:16]}  Ke6 {[%clk 0:00:13]} 48. Rxd7 {[%clk 0:00:17]}  Kxd7 {[%clk 0:00:13]} 49. Kf4 {[%clk 0:00:18]}  Ke6 {[%clk 0:00:09]} 50. h4 {[%clk 0:00:18]}  Kf6 {[%clk 0:00:08]} 51. h5 {[%clk 0:00:18]}  Ke6 {[%clk 0:00:09]} 52. f3 {[%clk 0:00:18]}  Kf6 {[%clk 0:00:09]} 53. g4 {[%clk 0:00:18]}  fxg4 {[%clk 0:00:09]} 54. fxg4 {[%clk 0:00:19]}  Ke6 {[%clk 0:00:08]} 55. g5 {[%clk 0:00:20]}  hxg5+ {[%clk 0:00:08]} 56. Kxg5 {[%clk 0:00:21]}  f5 {[%clk 0:00:05]} 57. h6 {[%clk 0:00:16]}  f4 {[%clk 0:00:02]} 58. h7 {[%clk 0:00:15]}  f3 {[%clk 0:00:03]} 59. h8=Q {[%clk 0:00:16]} 1-0


[Site "https://www.chess.com"]

[Event "Titled Tuesday Blitz November 29 Early 2022"]
[White "Simonovic, Miroslav"]
[Black "Manon, Reja Neer"]
[WhiteFideId "919152"]
[BlackFideId "10224009"]
[WhiteElo "2043"]
[BlackElo "1942"]
[Result "0-1"]
[Round "07"]
[TimeControl "180+1"]
[Date "2022.11.30"]
[WhiteClock "0:00:10"]
[BlackClock "0:00:02"]

1. d4 {[%clk 0:02:53]}  Nf6 {[%clk 0:02:58]} 2. Bg5 {[%clk 0:02:53]}  g6 {[%clk 0:02:57]} 3. Bxf6 {[%clk 0:02:53]}  exf6 {[%clk 0:02:58]} 4. c4 {[%clk 0:02:54]}  f5 {[%clk 0:02:55]} 5. Nc3 {[%clk 0:02:52]}  Bg7 {[%clk 0:02:55]} 6. g3 {[%clk 0:02:52]}  d6 {[%clk 0:02:48]} 7. Bg2 {[%clk 0:02:50]}  O-O {[%clk 0:02:38]} 8. e3 {[%clk 0:02:51]}  c6 {[%clk 0:02:14]} 9. Nge2 {[%clk 0:02:51]}  Be6 {[%clk 0:02:07]} 10. Qd3 {[%clk 0:02:45]}  d5 {[%clk 0:02:00]} 11. cxd5 {[%clk 0:02:46]}  cxd5 {[%clk 0:02:01]} 12. O-O {[%clk 0:02:44]}  Nc6 {[%clk 0:01:57]} 13. Nf4 {[%clk 0:02:42]}  Ne7 {[%clk 0:01:56]} 14. Qb5 {[%clk 0:02:36]}  Qd6 {[%clk 0:01:02]} 15. Nfxd5 {[%clk 0:02:35]}  Nxd5 {[%clk 0:00:42]} 16. Bxd5 {[%clk 0:02:34]}  a6 {[%clk 0:00:30]} 17. Qb3 {[%clk 0:02:30]}  b5 {[%clk 0:00:27]} 18. a3 {[%clk 0:02:25]}  g5 {[%clk 0:00:25]} 19. f4 {[%clk 0:02:13]}  h6 {[%clk 0:00:21]} 20. Rad1 {[%clk 0:02:07]}  Rac8 {[%clk 0:00:20]} 21. Bxe6 {[%clk 0:01:48]}  fxe6 {[%clk 0:00:21]} 22. d5 {[%clk 0:01:48]}  e5 {[%clk 0:00:21]} 23. fxg5 {[%clk 0:01:27]}  hxg5 {[%clk 0:00:21]} 24. e4 {[%clk 0:01:27]}  f4 {[%clk 0:00:16]} 25. Ne2 {[%clk 0:01:05]}  g4 {[%clk 0:00:14]} 26. gxf4 {[%clk 0:01:01]}  exf4 {[%clk 0:00:15]} 27. Nd4 {[%clk 0:00:46]}  Rc4 {[%clk 0:00:14]} 28. Ne6 {[%clk 0:00:34]}  Rf7 {[%clk 0:00:12]} 29. Qd3 {[%clk 0:00:19]}  Be5 {[%clk 0:00:10]} 30. Kh1 {[%clk 0:00:16]}  f3 {[%clk 0:00:10]} 31. Qe3 {[%clk 0:00:15]}  Bf4 {[%clk 0:00:07]} 32. Qf2 {[%clk 0:00:13]}  Rxe4 {[%clk 0:00:06]} 33. Qh4 {[%clk 0:00:12]}  Be3 {[%clk 0:00:05]} 34. Qg5+ {[%clk 0:00:11]}  Bxg5 {[%clk 0:00:05]} 35. Nxg5 {[%clk 0:00:10]}  Rh7 {[%clk 0:00:06]} 36. Nxe4 {[%clk 0:00:10]}  Qxh2# {[%clk 0:00:02]} 0-1


[Site "https://www.chess.com"]